bitfinex-derivatives/quotes_BTCF0:USTF0_20241221
["timestamp","ask_amount","ask_price","bid_price","bid_amount"]
[1734745254950,0.1887,97360.0,97359.0,0.051374]
[1734745255248,0.55950609,97360.0,97334.0,0.18410701]
[1734745255442,0.05138,97348.0,97347.0,0.05138]
[1734745255848,0.01000609,97350.0,97334.0,0.18410701]
[1734745256050,0.3608,97343.0,97334.0,0.18410701]
[1734745256454,0.3608,97335.0,97334.0,0.18410701]
[1734745256647,0.37086512,97335.0,97334.0,0.18410701]
[1734745256850,0.49496512,97335.0,97334.0,0.18710701]
[1734745257047,0.4849,97335.0,97334.0,0.003]
[1734745257252,0.49501029,97335.0,97334.0,0.003]
[1734745257552,0.49501029,97335.0,97330.0,0.00154095]
[1734745257553,0.051387,97334.0,97330.0,0.00154095]
[1734745257762,0.01012205,97333.0,97330.0,0.00154095]
[1734745258058,0.01012205,97332.0,97330.0,0.00154095]
[1734745258248,0.48662,97335.0,97330.0,0.00154095]
[1734745258249,0.01012248,97331.0,97330.0,0.00154095]
[1734745259355,0.01112248,97331.0,97330.0,0.00154095]
[1734745260360,0.01112248,97331.0,97325.0,0.051392]
[1734745260559,0.3608,97327.0,97325.0,0.051392]
[1734745260858,0.01012248,97326.0,97325.0,0.051392]
[1734745261245,0.01005991,97326.0,97325.0,0.051392]
[1734745261445,0.01005991,97326.0,97325.0,0.053392]
[1734745261446,0.02011983,97326.0,97325.0,0.053392]
[1734745262051,0.02011983,97326.0,97325.0,0.054392]
[1734745262969,0.02011983,97326.0,97325.0,0.003]
[1734745264156,0.02011983,97326.0,97302.0,0.54490701]
[1734745264364,0.3608,97310.0,97308.0,0.051401]
[1734745264557,0.01005992,97309.0,97308.0,0.051401]
[1734745265459,0.01005992,97309.0,97308.0,0.055401]
[1734745265660,0.01005992,97309.0,97308.0,0.064401]
[1734745266167,0.01005992,97309.0,97308.0,0.060401]
[1734745266374,0.01005992,97309.0,97308.0,0.064401]
[1734745266966,0.01004175,97325.0,97309.0,0.0514]
[1734745267271,0.01005991,97326.0,97324.0,0.051392]
[1734745267470,0.01004179,97325.0,97324.0,0.051392]
[1734745268363,0.01004179,97325.0,97315.0,0.1013537]
[1734745268364,0.01004179,97330.0,97329.0,0.05139]
[1734745268659,0.0614,97334.0,97333.0,0.051388]
[1734745269465,0.06484168,97335.0,97333.0,0.051388]
[1734745269666,0.001,97334.0,97333.0,0.051388]
[1734745271175,0.06584168,97335.0,97333.0,0.051388]
[1734745271771,0.00254168,97335.0,97333.0,0.051388]
[1734745271971,0.003,97334.0,97333.0,0.051388]
[1734745272572,0.001,97334.0,97333.0,0.051388]
[1734745272773,0.00454168,97335.0,97333.0,0.051388]
[1734745274680,0.001,97334.0,97333.0,0.051388]
[1734745275382,0.002,97334.0,97333.0,0.051388]
[1734745277083,0.003,97334.0,97333.0,0.051388]
[1734745277280,0.003,97334.0,97324.0,0.3608]
[1734745277585,0.3608,97331.0,97308.0,0.24547602]
[1734745277782,0.003,97334.0,97308.0,0.24547602]
[1734745277783,0.051398,97314.0,97308.0,0.24547602]
[1734745278079,0.0617,97313.0,97311.0,0.051399]
[1734745279077,0.3608,97329.0,97326.0,0.051391]
[1734745279277,0.0583,97331.0,97324.0,0.002]
[1734745279575,0.18127997,97334.0,97333.0,0.051388]
[1734745279576,0.12227997,97334.0,97333.0,0.051388]
[1734745279981,0.12227997,97341.0,97333.0,0.051388]
[1734745280386,0.01040289,97337.0,97333.0,0.051388]
[1734745280778,0.001,97334.0,97333.0,0.051388]
[1734745281685,0.00254168,97335.0,97333.0,0.051388]
[1734745282180,0.00254168,97335.0,97333.0,0.412188]
[1734745282385,0.00454168,97335.0,97333.0,0.412188]
[1734745282973,0.00454168,97335.0,97333.0,0.051388]
[1734745283178,0.00354168,97335.0,97333.0,0.051388]
[1734745283379,0.001,97334.0,97333.0,0.051388]
[1734745283975,0.00354168,97335.0,97333.0,0.051388]
[1734745284180,0.00454168,97335.0,97333.0,0.051388]
[1734745284581,0.0100622,97334.0,97333.0,0.051388]
[1734745284782,0.0110622,97334.0,97333.0,0.051388]
[1734745285779,0.0130622,97334.0,97333.0,0.051388]
[1734745287187,2e-07,97334.0,97333.0,0.051388]
[1734745288392,2e-07,97334.0,97333.0,0.35762115]
[1734745288699,0.01008959,97358.0,97353.0,0.051376]
[1734745288882,0.12227997,97361.0,97353.0,0.051376]
[1734745289186,0.12227997,97361.0,97348.0,0.1013537]
[1734745289391,0.12227997,97362.0,97355.0,0.051376]
[1734745289898,0.006,97358.0,97355.0,0.051376]
[1734745290284,0.006,97358.0,97353.0,0.001]
[1734745290488,0.12227997,97362.0,97358.0,0.051374]
[1734745290489,0.001,97362.0,97358.0,0.051374]
[1734745290678,0.01127194,97362.0,97358.0,0.051374]
[1734745290887,0.001,97362.0,97358.0,0.051374]
[1734745292287,0.12227997,97366.0,97358.0,0.051374]
[1734745292791,0.001,97362.0,97358.0,0.051374]
[1734745293492,0.002,97362.0,97358.0,0.051374]
[1734745294893,0.002,97362.0,97360.0,0.051373]
[1734745295994,0.00998469,97366.0,97360.0,0.051373]
[1734745296196,0.003,97362.0,97360.0,0.051373]
[1734745296996,0.001,97362.0,97360.0,0.051373]
[1734745298598,0.003,97362.0,97360.0,0.051373]
[1734745301306,0.051378,97352.0,97344.0,0.051381]
[1734745301488,0.3608,97351.0,97344.0,0.051381]
[1734745301994,0.051379,97350.0,97344.0,0.051381]
[1734745302199,0.3608,97351.0,97338.0,0.18435924]
[1734745302200,0.3608,97351.0,97349.0,0.051379]
[1734745304103,0.3618,97351.0,97344.0,0.001]
[1734745304297,0.051381,97345.0,97344.0,0.001]
[1734745305703,0.051381,97345.0,97327.0,0.051395]
[1734745305897,0.051393,97332.0,97327.0,0.051395]
[1734745307800,0.051395,97329.0,97320.0,0.00154113]
[1734745308106,0.3608,97321.0,97320.0,0.05294013]
[1734745309413,0.3608,97321.0,97320.0,0.05694013]
[1734745310208,0.3608,97321.0,97320.0,0.05894013]
[1734745313913,0.37080704,97321.0,97320.0,0.05894013]
[1734745315016,0.42220604,97321.0,97320.0,0.00754113]
[1734745317107,0.3608,97321.0,97320.0,0.00754113]
[1734745319516,0.1221574,97330.0,97320.0,0.00754113]
[1734745319812,0.3608,97333.0,97331.0,0.051393]
[1734745321005,0.3608,97359.0,97338.0,0.05139]
[1734745321209,0.12193013,97344.0,97343.0,0.051387]
[1734745322322,0.18343013,97344.0,97343.0,0.051387]
[1734745322616,0.18343013,97344.0,97334.0,0.1013537]
[1734745322617,0.54723013,97344.0,97335.0,0.051391]
[1734745322918,0.3608,97336.0,97335.0,0.051392]
[1734745324918,0.3608,97336.0,97320.0,0.00154113]
[1734745325112,0.3608,97336.0,97330.0,0.051394]
[1734745325314,0.3608,97336.0,97334.0,0.051392]
[1734745325721,0.3608,97336.0,97335.0,0.001]
[1734745326321,0.3608,97336.0,97334.0,0.051392]
[1734745330224,0.3618,97336.0,97334.0,0.051392]
[1734745331021,0.3628,97336.0,97334.0,0.051392]
[1734745333025,0.002,97336.0,97334.0,0.051392]
[1734745334217,0.3608,97344.0,97343.0,0.051387]
[1734745335825,0.3618,97344.0,97343.0,0.051387]
[1734745336026,0.3628,97344.0,97343.0,0.051387]
[1734745336330,0.3628,97344.0,97343.0,0.110787]
[1734745343134,0.002,97344.0,97343.0,0.110787]
[1734745346240,0.002,97344.0,97343.0,0.412187]
[1734745350143,0.3608,97358.0,97357.0,0.05138]
[1734745350838,0.21594997,97366.0,97365.0,0.051376]
[1734745351744,0.0631,97366.0,97365.0,0.051376]
[1734745352835,0.0631,97366.0,97365.0,0.052376]
[1734745353035,0.0631,97366.0,97365.0,0.06257251]
[1734745353236,0.0661,97366.0,97365.0,0.06257251]
[1734745358941,0.3608,97378.0,97365.0,0.06257251]
[1734745358942,0.3608,97378.0,97365.0,0.01119651]
[1734745359145,0.0618,97385.0,97365.0,0.01119651]
[1734745359146,0.0605,97384.0,97368.0,0.051374]
[1734745359442,0.0605,97384.0,97383.0,0.051366]
[1734745361253,0.0605,97384.0,97383.0,0.052366]
[1734745361643,0.0635,97384.0,97383.0,0.052366]
[1734745367053,0.0635,97384.0,97383.0,0.06261308]
[1734745368956,0.0615,97384.0,97383.0,0.06261308]
[1734745370351,0.0615,97384.0,97383.0,0.06161308]
[1734745370746,0.0615,97384.0,97383.0,0.051366]
[1734745370964,0.0615,97384.0,97374.0,0.28577266]
[1734745371251,0.3608,97375.0,97369.0,0.24581233]
[1734745371558,0.3608,97373.0,97368.0,0.051374]
[1734745372156,0.3608,97373.0,97359.0,0.30726541]
[1734745372157,0.3608,97373.0,97369.0,0.051374]
[1734745372360,0.3608,97373.0,97371.0,0.051372]
[1734745374049,0.37085611,97373.0,97371.0,0.051372]
[1734745374258,0.37085611,97373.0,97371.0,0.052372]
[1734745374757,0.37085611,97373.0,97368.0,0.001]
[1734745374758,0.0606,97372.0,97368.0,0.001]
[1734745375054,0.051376,97365.0,97361.0,0.051378]
[1734745375254,0.3608,97362.0,97361.0,0.051378]
[1734745376764,0.3608,97362.0,97340.0,0.1013537]
[1734745376961,0.3608,97349.0,97340.0,0.1013537]
[1734745377561,0.3608,97349.0,97348.0,0.051385]
[1734745379365,0.3608,97349.0,97348.0,0.052385]
[1734745380365,0.3608,97349.0,97348.0,0.055385]
[1734745380860,0.15268187,97356.0,97348.0,0.055385]
[1734745381064,0.15268187,97356.0,97355.0,0.051381]
[1734745381267,0.05818187,97356.0,97355.0,0.051381]
[1734745382766,0.36152,97362.0,97361.0,0.051378]
[1734745383068,0.3608,97362.0,97361.0,0.051378]
[1734745383266,0.3608,97362.0,97349.0,0.0617]
[1734745383466,0.3608,97352.0,97349.0,0.0617]
[1734745383658,0.3608,97352.0,97350.0,0.051384]
[1734745384471,0.3608,97352.0,97349.0,0.004]
[1734745384871,0.3608,97352.0,97350.0,0.006]
[1734745385065,0.3608,97352.0,97350.0,0.057383]
[1734745385260,0.3608,97352.0,97350.0,0.054383]
[1734745385461,0.3608,97352.0,97350.0,0.057383]
[1734745385659,0.45242314,97352.0,97350.0,0.057383]
[1734745385870,0.45242314,97352.0,97350.0,0.054383]
[1734745386757,0.45242314,97352.0,97350.0,0.051383]
[1734745386959,0.45342314,97352.0,97350.0,0.051383]
[1734745387167,0.3618,97352.0,97350.0,0.051383]
[1734745387568,0.3608,97352.0,97350.0,0.052383]
[1734745387760,0.3608,97352.0,97350.0,0.001]
[1734745388560,0.3608,97352.0,97346.0,0.1013537]
[1734745388966,0.3608,97352.0,97349.0,0.051384]
[1734745390670,0.3608,97352.0,97346.0,0.1013537]
[1734745390872,0.3608,97352.0,97347.0,0.051385]
[1734745391172,0.3608,97352.0,97348.0,0.051384]
[1734745395473,0.3608,97352.0,97351.0,0.051383]
[1734745396766,0.3608,97352.0,97351.0,0.052383]
[1734745397071,0.09162314,97355.0,97351.0,0.052383]
[1734745397072,0.09162314,97355.0,97354.0,0.051382]
[1734745398275,0.3608,97362.0,97345.0,0.1013537]
[1734745398476,0.3608,97362.0,97361.0,0.051378]
[1734745400779,0.3608,97362.0,97361.0,0.053378]
[1734745400971,0.3608,97362.0,97361.0,0.054378]
[1734745401368,0.3608,97362.0,97361.0,0.052378]
[1734745401671,0.3608,97362.0,97361.0,0.059378]
[1734745402865,0.3608,97362.0,97361.0,0.056378]
[1734745403071,0.3608,97362.0,97361.0,0.058378]
[1734745403673,0.3608,97362.0,97361.0,0.06671049]
[1734745403873,0.3608,97362.0,97361.0,0.06871049]
[1734745406883,0.09162314,97367.0,97361.0,0.01533249]
[1734745407083,0.09162314,97367.0,97366.0,0.051375]
[1734745409177,0.09162314,97367.0,97366.0,0.052375]
[1734745409584,0.09162314,97370.0,97366.0,0.001]
[1734745409776,0.09162314,97370.0,97369.0,0.051374]
[1734745410785,0.09162314,97372.0,97371.0,0.051373]
[1734745412375,0.36310094,97380.0,97379.0,0.051368]
[1734745412576,0.36234094,97380.0,97379.0,0.051368]
[1734745413681,0.36434094,97380.0,97379.0,0.051368]
[1734745415493,0.36434094,97380.0,97379.0,0.06170204]
[1734745416192,0.36434094,97380.0,97379.0,0.051368]
[1734745418694,0.37471386,97380.0,97379.0,0.051368]
[1734745419087,0.37471386,97380.0,97370.0,0.1013537]
[1734745419289,0.3608,97371.0,97370.0,0.1013537]
[1734745419489,0.3608,97371.0,97370.0,0.051373]
[1734745421999,0.09169419,97373.0,97372.0,0.051372]
[1734745422993,0.09169419,97373.0,97367.0,0.0608]
[1734745422994,0.09169419,97375.0,97374.0,0.051371]
[1734745424398,0.13228307,97378.0,97374.0,0.051371]
[1734745424699,0.001,97375.0,97374.0,0.051371]
[1734745425399,0.12216418,97378.0,97374.0,0.051371]
[1734745425596,0.12216418,97378.0,97362.0,0.01021612]
[1734745425597,0.12316418,97378.0,97365.0,0.1013537]
[1734745425897,0.15295656,97377.0,97375.0,0.05137]
[1734745427298,0.15295656,97378.0,97377.0,0.051369]
[1734745428389,0.15295656,97379.0,97377.0,0.051369]
[1734745428699,0.001,97378.0,97377.0,0.051369]
[1734745430494,0.12248198,97382.0,97376.0,0.3608]
[1734745430695,0.001,97379.0,97377.0,0.051369]
[1734745431292,0.001,97378.0,97377.0,0.051369]
[1734745432096,0.09185122,97381.0,97380.0,0.051368]
[1734745432696,0.3608,97381.0,97380.0,0.051368]
[1734745435300,0.3628,97381.0,97368.0,0.3474176]
[1734745435602,0.3628,97381.0,97373.0,0.051371]
[1734745435905,0.0599,97380.0,97373.0,0.051371]
[1734745436297,0.0599,97380.0,97368.0,0.1013537]
[1734745436493,0.3608,97371.0,97369.0,0.051374]
[1734745438598,0.051375,97367.0,97362.0,0.01043451]
[1734745438793,0.3608,97363.0,97357.0,0.2460639]
[1734745439103,0.3608,97363.0,97362.0,0.051377]
[1734745439809,0.3608,97363.0,97362.0,0.054377]
[1734745440508,0.3608,97363.0,97362.0,0.056377]
[1734745440708,0.48320775,97363.0,97362.0,0.005]
[1734745440906,0.05138,97357.0,97355.0,0.051381]
[1734745442096,0.05138,97357.0,97355.0,0.054381]
[1734745442306,0.05138,97357.0,97355.0,0.060381]
[1734745442707,0.15295656,97359.0,97357.0,0.05138]
[1734745443512,0.51375656,97361.0,97357.0,0.05138]
[1734745443901,0.56513456,97361.0,97357.0,0.05338]
[1734745444209,0.56513456,97361.0,97357.0,0.05838]
[1734745444407,0.051379,97359.0,97357.0,0.007]
[1734745444802,0.051379,97359.0,97357.0,0.002]
[1734745444999,0.051379,97359.0,97357.0,0.007]
[1734745445911,0.051379,97359.0,97357.0,0.002]
[1734745446106,0.051379,97359.0,97357.0,0.007]
[1734745446714,0.04996217,97358.0,97357.0,0.007]
[1734745447796,0.04996217,97358.0,97357.0,0.005]
[1734745447996,0.04996217,97358.0,97357.0,0.007]
[1734745448514,0.051379,97359.0,97357.0,0.007]
[1734745452010,0.3608,97361.0,97360.0,0.051378]
[1734745453108,0.3608,97361.0,97360.0,0.053378]
[1734745453714,0.3608,97361.0,97360.0,0.057378]
[1734745460022,0.2705,97361.0,97360.0,0.057378]
[1734745460211,0.09149227,97363.0,97360.0,0.006]
[1734745460419,0.12198969,97367.0,97366.0,0.051375]
[1734745461119,0.12198969,97374.0,97373.0,0.051372]
[1734745461724,0.12198969,97374.0,97373.0,0.412172]
[1734745462725,0.3608,97382.0,97374.0,0.051371]
[1734745463123,0.3608,97382.0,97373.0,0.3608]
[1734745463321,0.12198969,97385.0,97384.0,0.051366]
[1734745463927,0.15254447,97386.0,97384.0,0.051366]
[1734745464118,0.15254447,97386.0,97385.0,0.1123]
[1734745465125,0.15554447,97386.0,97385.0,0.1123]
[1734745465425,0.003,97386.0,97385.0,0.1123]
[1734745465721,0.005,97386.0,97385.0,0.163665]
[1734745465925,0.005,97386.0,97385.0,0.524465]
[1734745466315,0.003,97386.0,97385.0,0.524465]
[1734745466521,0.005,97386.0,97385.0,0.524465]
[1734745467624,0.005,97386.0,97385.0,0.4731]
[1734745467823,0.051367,97382.0,97376.0,0.1527237]
[1734745468424,0.051369,97378.0,97376.0,0.1013537]
[1734745468628,0.05137,97376.0,97369.0,0.051374]
[1734745469327,0.05137,97376.0,97368.0,0.1013537]
[1734745469520,0.05137,97376.0,97370.0,0.051373]
[1734745469715,0.17377166,97376.0,97371.0,0.051372]
[1734745470113,0.17377166,97376.0,97372.0,0.051372]
[1734745470318,0.17377166,97376.0,97369.0,0.001]
[1734745470517,0.17377166,97376.0,97374.0,0.051371]
[1734745471425,0.12240166,97375.0,97374.0,0.051371]
[1734745472719,0.001,97376.0,97374.0,0.051371]
[1734745473728,0.001,97376.0,97375.0,0.0558]
[1734745474122,0.12240166,97385.0,97375.0,0.0558]
[1734745474320,0.12240166,97385.0,97384.0,0.051366]
[1734745475521,0.12540166,97385.0,97384.0,0.051366]
[1734745475926,0.003,97385.0,97384.0,0.051366]
[1734745476528,0.005,97385.0,97384.0,0.051366]
[1734745477329,0.005,97385.0,97384.0,0.06159939]
[1734745477629,0.005,97385.0,97384.0,0.051366]
[1734745490239,0.12240166,97399.0,97384.0,0.051366]
[1734745490427,0.12240166,97399.0,97398.0,0.412158]
[1734745491438,0.002,97399.0,97398.0,0.412158]
[1734745491828,0.005,97399.0,97398.0,0.413158]
[1734745492023,0.003,97399.0,97398.0,0.413158]
[1734745492237,0.008,97399.0,97398.0,0.413158]
[1734745494539,0.003,97399.0,97398.0,0.413158]
[1734745494835,0.004,97399.0,97398.0,0.413158]
[1734745495038,0.004,97399.0,97398.0,0.412158]
[1734745495236,0.001,97399.0,97398.0,0.413158]
[1734745497941,0.001,97399.0,97398.0,0.42364793]
[1734745499233,0.001,97399.0,97398.0,0.06284793]
[1734745500442,0.001,97399.0,97391.0,0.3608]
[1734745500633,0.1191,97398.0,97391.0,0.3608]
[1734745500840,0.051359,97397.0,97391.0,0.3608]
[1734745501235,0.3608,97392.0,97386.0,0.28571753]
[1734745501638,0.3608,97392.0,97388.0,0.051363]
[1734745501842,0.3608,97392.0,97389.0,0.051363]
[1734745502040,0.3608,97392.0,97386.0,0.28571753]
[1734745502545,0.51334447,97392.0,97386.0,0.1013537]
[1734745503241,0.51434447,97392.0,97390.0,0.051362]
[1734745503426,0.51434447,97392.0,97380.0,0.1013537]
[1734745503631,0.0563,97391.0,97389.0,0.051363]
[1734745505239,0.0583,97391.0,97389.0,0.051363]
[1734745505643,0.12255173,97390.0,97389.0,0.051363]
[1734745506947,0.12455173,97390.0,97389.0,0.051363]
[1734745507644,0.12555173,97390.0,97389.0,0.051363]
[1734745511549,0.003,97390.0,97389.0,0.051363]
[1734745516049,0.003,97390.0,97389.0,0.412163]
[1734745518949,0.1124036,97401.0,97394.0,0.05136]
[1734745519143,0.1124036,97401.0,97400.0,0.3608]
[1734745519955,0.18341996,97414.0,97411.0,0.051352]
[1734745521358,0.18341996,97414.0,97411.0,0.052352]
[1734745521359,0.00254039,97412.0,97411.0,0.052352]
[1734745523745,0.00154039,97412.0,97411.0,0.052352]
[1734745524156,0.18341996,97434.0,97431.0,0.051341]
[1734745524456,0.18341996,97435.0,97431.0,0.051341]
[1734745525661,0.18341996,97435.0,97434.0,0.051339]
[1734745525863,0.0569,97436.0,97434.0,0.051339]
[1734745526552,0.0569,97436.0,97435.0,0.3608]
[1734745527249,0.058,97444.0,97442.0,0.051335]
[1734745528248,0.18341996,97445.0,97444.0,0.051334]
[1734745528855,0.18341996,97445.0,97444.0,0.412134]
[1734745529052,0.18341996,97457.0,97453.0,0.051329]
[1734745530762,0.00253984,97454.0,97453.0,0.052329]
[1734745531263,0.00253984,97454.0,97453.0,0.053329]
[1734745534365,0.00253984,97454.0,97453.0,0.414129]
[1734745535172,0.001,97454.0,97453.0,0.414129]
[1734745535556,0.001,97454.0,97453.0,0.42432594]
[1734745535769,0.1712,97465.0,97464.0,0.051324]
[1734745536270,0.3608,97477.0,97464.0,0.3608]
[1734745536467,0.0557,97476.0,97472.0,0.051319]
[1734745537363,0.0557,97476.0,97473.0,0.051319]
[1734745538363,0.0557,97476.0,97475.0,0.051318]
[1734745539163,0.0567,97476.0,97475.0,0.051318]
[1734745540055,0.001,97476.0,97475.0,0.051318]
[1734745540665,0.001,97476.0,97475.0,0.052318]
[1734745540872,0.001,97476.0,97475.0,0.111518]
[1734745543457,0.11017599,97500.0,97475.0,0.0602]
[1734745543661,0.11017599,97500.0,97490.0,0.4621537]
[1734745543870,0.11017599,97500.0,97493.0,0.051308]
[1734745544768,0.11017599,97500.0,97490.0,0.1013537]
[1734745544769,0.1,97500.0,97498.0,0.051306]
[1734745545570,0.101,97500.0,97498.0,0.051306]
[1734745546169,0.1,97500.0,97498.0,0.051306]
[1734745546363,0.101,97500.0,97498.0,0.051306]
[1734745546763,0.101,97500.0,97498.0,0.06149309]
[1734745547065,0.101,97500.0,97498.0,0.06249309]
[1734745547477,0.101,97500.0,97498.0,0.001]
[1734745547779,0.051308,97495.0,97490.0,0.1013537]
[1734745547965,0.101,97500.0,97490.0,0.4621537]
[1734745548277,0.1,97500.0,97499.0,0.051305]
[1734745549274,0.101,97500.0,97499.0,0.051305]
[1734745549869,0.101,97500.0,97499.0,0.052305]
[1734745550971,0.101,97500.0,97490.0,0.1013537]
[1734745551275,0.3608,97495.0,97490.0,0.1013537]
[1734745551585,0.3608,97495.0,97494.0,0.051308]
[1734745551874,0.0575,97499.0,97490.0,0.11161508]
[1734745552067,0.0575,97499.0,97496.0,0.051307]
[1734745552470,0.0575,97499.0,97497.0,0.051306]
[1734745553077,0.0585,97499.0,97497.0,0.051306]
[1734745553585,0.108806,97499.0,97497.0,0.051306]
[1734745553776,0.109806,97499.0,97497.0,0.052306]
[1734745554075,0.0585,97499.0,97497.0,0.052306]
[1734745554276,0.109805,97499.0,97497.0,0.001]
[1734745554468,0.051311,97489.0,97482.0,0.051314]
[1734745554668,0.3608,97483.0,97482.0,0.051314]
[1734745555079,0.3608,97483.0,97464.0,0.60848547]
[1734745555080,0.3608,97483.0,97470.0,0.2027074]
[1734745555281,0.051315,97480.0,97474.0,0.23573643]
[1734745555467,0.0566,97479.0,97475.0,0.051318]
[1734745555671,0.0566,97479.0,97476.0,0.051317]
[1734745556373,0.051318,97475.0,97474.0,0.18441843]
[1734745556676,0.051321,97469.0,97465.0,0.051323]
[1734745557378,0.3608,97466.0,97465.0,0.051323]
[1734745557785,0.3608,97475.0,97474.0,0.051318]
[1734745558176,0.0566,97479.0,97477.0,0.051316]
[1734745558772,0.3608,97478.0,97477.0,0.051316]
[1734745559274,0.3608,97478.0,97477.0,0.052316]
[1734745559679,0.3608,97478.0,97477.0,0.001]
[1734745560884,0.412116,97478.0,97477.0,0.001]
[1734745565276,0.3608,97478.0,97477.0,0.001]
[1734745565991,0.3608,97478.0,97477.0,0.1156]
[1734745566487,0.3608,97496.0,97491.0,0.051309]
[1734745566681,0.3608,97496.0,97495.0,0.051307]
[1734745568092,0.3638,97496.0,97495.0,0.052307]
[1734745569593,0.6638,97496.0,97473.0,0.24614659]
[1734745569783,0.3608,97476.0,97474.0,0.051318]
[1734745569984,0.3608,97476.0,97473.0,0.24614659]
[1734745570291,0.051318,97474.0,97473.0,0.24614659]
[1734745570698,0.051321,97468.0,97462.0,0.36620776]
[1734745570895,0.051324,97463.0,97462.0,0.36620776]
[1734745571188,0.412124,97463.0,97462.0,0.36620776]
[1734745571382,0.3608,97463.0,97450.0,0.00052]
[1734745571582,0.051332,97448.0,97443.0,0.051334]
[1734745572992,0.3608,97451.0,97439.0,0.36632733]
[1734745573190,0.3608,97463.0,97439.0,0.36632733]
[1734745573191,0.15212288,97459.0,97439.0,0.36091957]
[1734745573393,0.15212288,97459.0,97458.0,0.051327]
[1734745574594,0.3608,97463.0,97458.0,0.051327]
[1734745574893,0.3608,97463.0,97460.0,0.051325]
[1734745576985,0.3608,97463.0,97460.0,0.053325]
[1734745577390,0.37089072,97463.0,97460.0,0.053325]
[1734745577890,0.37089072,97463.0,97460.0,0.056325]
[1734745578296,0.37089072,97463.0,97460.0,0.005]
[1734745578598,0.051325,97462.0,97460.0,0.005]
[1734745579101,0.0008,97463.0,97460.0,0.005]
[1734745579298,0.051325,97461.0,97460.0,0.003]
[1734745579491,0.051325,97461.0,97419.0,0.0562]
[1734745579492,0.051335,97443.0,97419.0,0.0562]
[1734745579691,0.051341,97432.0,97420.0,0.111546]
[1734745579892,0.3608,97426.0,97421.0,0.051346]
[1734745580093,0.3608,97426.0,97420.0,0.0602]
[1734745580094,0.3608,97426.0,97423.0,0.36620776]
[1734745580290,0.3608,97426.0,97424.0,0.051345]
[1734745580494,0.3608,97443.0,97423.0,0.36620776]
[1734745580699,0.412135,97443.0,97432.0,0.05134]
[1734745580999,0.412135,97443.0,97430.0,0.1013537]
[1734745581200,0.3608,97443.0,97430.0,0.1013537]
[1734745581392,0.3608,97443.0,97438.0,0.051337]
[1734745581593,0.051344,97425.0,97423.0,0.36620776]
[1734745581899,0.051344,97425.0,97421.0,0.009]
[1734745581900,0.3608,97431.0,97421.0,0.009]
[1734745582093,0.412146,97422.0,97421.0,0.009]
[1734745582698,0.051352,97411.0,97407.0,0.1158]
[1734745582995,0.051353,97408.0,97407.0,0.1158]
[1734745584005,0.051353,97408.0,97377.0,0.051369]
[1734745584006,0.051364,97387.0,97376.0,0.05137]
[1734745584297,0.412164,97387.0,97378.0,0.0556]
[1734745585101,0.3608,97387.0,97378.0,0.0556]
[1734745585304,0.3608,97387.0,97386.0,0.051365]
[1734745585600,0.001,97387.0,97386.0,0.051365]
[1734745586195,0.3608,97395.0,97383.0,0.3608]
[1734745586398,0.051365,97386.0,97378.0,0.0646]
[1734745586905,0.051365,97386.0,97378.0,0.115969]
[1734745587200,0.3608,97379.0,97378.0,0.115969]
[1734745587599,0.3608,97379.0,97378.0,0.106969]
[1734745588305,0.3628,97379.0,97378.0,0.106969]
[1734745588695,0.3628,97379.0,97378.0,0.0556]
[1734745589003,0.3628,97379.0,97353.0,0.3608]
[1734745589004,0.7236,97379.0,97362.0,0.051377]
[1734745589200,0.3608,97364.0,97362.0,0.051377]
[1734745589400,0.36352,97379.0,97363.0,0.0569]
[1734745589603,0.051352,97410.0,97377.0,0.051369]
[1734745589904,0.09149773,97401.0,97400.0,0.051357]
[1734745590609,0.09149773,97401.0,97400.0,0.412157]
[1734745591104,0.09649773,97401.0,97400.0,0.413157]
[1734745591508,0.005,97401.0,97400.0,0.412157]
[1734745591702,0.3608,97414.0,97412.0,0.051351]
[1734745591906,0.36234053,97426.0,97400.0,0.3608]
[1734745591907,0.36306053,97426.0,97410.0,0.3608]
[1734745592109,0.36234053,97426.0,97418.0,0.051348]
[1734745592606,0.36234053,97426.0,97410.0,0.3608]
[1734745592607,0.36234053,97426.0,97416.0,0.1013537]
[1734745593211,0.3608,97426.0,97416.0,0.1013537]
[1734745593409,0.3608,97426.0,97424.0,0.051344]
[1734745595910,0.3628,97426.0,97424.0,0.051344]
[1734745598400,0.3628,97426.0,97411.0,0.0606]
[1734745598613,0.051345,97423.0,97415.0,0.051349]
[1734745599409,0.051346,97422.0,97415.0,0.051349]
[1734745599998,0.051346,97422.0,97410.0,0.4621537]
[1734745600200,0.36352,97426.0,97424.0,0.051344]
[1734745600500,0.3628,97426.0,97424.0,0.051344]
[1734745600910,0.3608,97426.0,97424.0,0.051344]
[1734745601300,0.3608,97426.0,97425.0,0.121]
[1734745602401,0.3628,97426.0,97425.0,0.121]
[1734745603214,0.09149773,97438.0,97425.0,0.121]
[1734745603416,0.01022538,97439.0,97429.0,0.3608]
[1734745603615,0.09149773,97440.0,97429.0,0.3608]
[1734745603815,0.09149773,97440.0,97435.0,0.051339]
[1734745605110,0.051335,97442.0,97435.0,0.051339]
[1734745606018,0.0104468,97442.0,97440.0,0.051336]
[1734745606216,0.09149773,97446.0,97429.0,0.3608]
[1734745606515,0.09149773,97446.0,97444.0,0.051334]
[1734745607812,0.10167874,97446.0,97444.0,0.051334]
[1734745608008,0.10167874,97446.0,97444.0,0.052334]
[1734745608617,0.10367874,97446.0,97444.0,0.052334]
[1734745609013,0.13448437,97446.0,97444.0,0.052334]
[1734745610108,0.18581737,97446.0,97444.0,0.001]
[1734745610710,0.06351401,97446.0,97444.0,0.001]